bitfinex-derivatives/quotes_BTCF0:USTF0_20260119
["timestamp","ask_amount","ask_price","bid_price","bid_amount"]
[1768840974648,0.02344032,93217.0,93209.0,0.01292848]
[1768840974850,0.010733,93221.0,93209.0,0.01292848]
[1768840975052,0.02344352,93220.0,93209.0,0.01292848]
[1768840975352,0.02344352,93219.0,93209.0,0.01292848]
[1768840975542,0.02344352,93218.0,93209.0,0.01292848]
[1768840975851,0.08527672,93228.0,93209.0,0.01292848]
[1768840975852,0.02344352,93217.0,93209.0,0.01292848]
[1768840976150,0.010732,93223.0,93209.0,0.02366248]
[1768840976341,0.02344283,93222.0,93209.0,0.02366248]
[1768840976648,0.02344283,93221.0,93209.0,0.02366248]
[1768840976841,0.02344283,93220.0,93209.0,0.02366248]
[1768840977042,0.010732,93223.0,93209.0,0.02366248]
[1768840977043,0.02344283,93219.0,93209.0,0.02366248]
[1768840977351,0.02344283,93218.0,93209.0,0.02366248]
[1768840977652,0.010733,93221.0,93209.0,0.01292848]
[1768840977852,0.02344243,93220.0,93209.0,0.01292848]
[1768840978153,0.02344243,93219.0,93209.0,0.01292848]
[1768840978346,0.02344243,93218.0,93209.0,0.01292848]
[1768840978547,0.010733,93221.0,93209.0,0.01292848]
[1768840978848,0.02344208,93220.0,93209.0,0.01292848]
[1768840979050,0.02344208,93219.0,93209.0,0.01292848]
[1768840979251,0.02344208,93218.0,93209.0,0.01292848]
[1768840979452,0.02344208,93217.0,93209.0,0.01292848]
[1768840979656,0.03016749,93223.0,93209.0,0.01292848]
[1768840979845,0.02344257,93222.0,93209.0,0.01292848]
[1768840980045,0.02344257,93221.0,93209.0,0.01292848]
[1768840980257,0.02344257,93220.0,93209.0,0.01292848]
[1768840980551,0.02344257,93219.0,93209.0,0.01292848]
[1768840980753,0.02344257,93218.0,93209.0,0.01292848]
[1768840980953,0.02344257,93217.0,93209.0,0.01292848]
[1768840981149,0.010733,93222.0,93209.0,0.01292848]
[1768840981348,0.0234421,93221.0,93209.0,0.01292848]
[1768840981550,0.0234421,93220.0,93209.0,0.01292848]
[1768840981750,0.0234421,93219.0,93209.0,0.01292848]
[1768840981947,0.0234421,93218.0,93209.0,0.01292848]
[1768840982148,0.0234421,93217.0,93209.0,0.01292848]
[1768840982445,0.010733,93221.0,93209.0,0.01292848]
[1768840982646,0.02344214,93220.0,93209.0,0.01292848]
[1768840982847,0.010733,93221.0,93209.0,0.01292848]
[1768840983047,0.010732,93223.0,93209.0,0.01292848]
[1768840984458,0.010732,93225.0,93209.0,0.01292848]
[1768840984659,0.010732,93223.0,93209.0,0.01292848]
[1768840985254,0.010732,93223.0,93209.0,0.02366248]
[1768840987962,0.010732,93223.0,93209.0,0.01292848]
[1768840989364,0.19260872,93226.0,93209.0,0.02366248]
[1768840989565,0.03417635,93225.0,93209.0,0.02366248]
[1768840989760,0.02344435,93224.0,93209.0,0.02366248]
[1768840990062,0.04089949,93225.0,93209.0,0.02366248]
[1768840990266,0.02344484,93224.0,93209.0,0.02366248]
[1768840990559,0.04089949,93225.0,93209.0,0.02366248]
[1768840990760,0.02344497,93224.0,93209.0,0.02366248]
[1768840990957,0.04089949,93225.0,93209.0,0.02366248]
[1768840991258,0.02344497,93224.0,93209.0,0.02366248]
[1768840991462,0.04089949,93225.0,93209.0,0.02366248]
[1768840991671,0.02344586,93224.0,93209.0,0.02366248]
[1768840991878,0.010732,93223.0,93209.0,0.02366248]
[1768840992390,0.03016749,93225.0,93209.0,0.01292848]
[1768840992677,0.03016749,93223.0,93209.0,0.01292848]
[1768840992882,0.03016749,93222.0,93209.0,0.01292848]
[1768840994064,0.010732,93225.0,93209.0,0.02366248]
[1768840994267,0.010732,93223.0,93209.0,0.01292848]
[1768840995077,0.03016749,93225.0,93209.0,0.02366248]
[1768840995277,0.02343503,93224.0,93209.0,0.02366248]
[1768840995472,0.02343503,93223.0,93209.0,0.01292848]
[1768840995779,0.107332,93226.0,93212.0,0.010734]
[1768840995977,0.02343503,93225.0,93212.0,0.010734]
[1768840996173,0.02343503,93224.0,93212.0,0.010734]
[1768840996374,0.107332,93226.0,93212.0,0.010734]
[1768840996569,0.02343521,93225.0,93212.0,0.010734]
[1768840996774,0.02343521,93224.0,93212.0,0.010734]
[1768840997074,0.010733,93222.0,93209.0,0.01292848]
[1768840997778,0.010732,93224.0,93210.0,0.010734]
[1768840998175,0.010732,93224.0,93211.0,0.010734]
[1768841000579,0.010732,93224.0,93213.0,0.010734]
[1768841000782,0.30805274,93299.0,93224.0,0.010732]
[1768841000783,0.08527672,93234.0,93224.0,0.010732]
[1768841001078,0.0966,93245.0,93233.0,0.010731]
[1768841001479,0.0966,93245.0,93230.0,0.05116608]
[1768841001984,0.0966,93245.0,93235.0,0.010731]
[1768841002173,0.010729,93249.0,93235.0,0.010731]
[1768841002373,0.01073,93247.0,93230.0,0.05116608]
[1768841002571,0.10733,93247.0,93230.0,0.05116608]
[1768841002772,0.01073,93245.0,93230.0,0.06189808]
[1768841002976,0.01073,93245.0,93232.0,0.010731]
[1768841003175,0.12682987,93247.0,93230.0,0.05116608]
[1768841003889,0.12682987,93247.0,93233.0,0.010731]
[1768841005489,0.12682987,93247.0,93230.0,0.05116608]
[1768841006185,0.03022987,93255.0,93237.0,0.08496933]
[1768841006379,0.0966,93256.0,93243.0,0.01073]
[1768841006786,0.03022987,93255.0,93240.0,0.01073]
[1768841007189,0.03022987,93255.0,93239.0,0.01073]
[1768841007892,0.03022987,93254.0,93239.0,0.01073]
[1768841008388,0.03022987,93254.0,93237.0,0.05315364]
[1768841008689,0.03022987,93254.0,93237.0,0.06388464]
[1768841009186,0.03022987,93254.0,93237.0,0.05315364]
[1768841009385,0.03022987,93253.0,93234.0,0.010731]
[1768841009890,0.03022987,93253.0,93236.0,0.010731]
[1768841010091,0.03022987,93253.0,93238.0,0.010731]
[1768841010991,0.03022987,93252.0,93235.0,0.010731]
[1768841012894,0.03022987,93251.0,93235.0,0.010731]
[1768841013880,0.03022987,93251.0,93232.0,0.05315364]
[1768841014085,0.03022987,93251.0,93236.0,0.010731]
[1768841014496,0.03022987,93251.0,93238.0,0.010731]
[1768841014890,0.010729,93252.0,93238.0,0.010731]
[1768841015096,0.107329,93255.0,93240.0,0.09516433]
[1768841015293,0.010729,93253.0,93240.0,0.08443433]
[1768841015693,0.010729,93253.0,93240.0,0.05315364]
[1768841016491,0.0966,93255.0,93241.0,0.01073]
[1768841016889,0.010729,93255.0,93242.0,0.01073]
[1768841017592,0.03022987,93256.0,93236.0,0.03128069]
[1768841017792,0.010729,93253.0,93237.0,0.010731]
[1768841017992,0.04095887,93253.0,93237.0,0.010731]
[1768841018388,0.04095887,93253.0,93235.0,0.05315364]
[1768841018884,0.03022987,93253.0,93242.0,0.01073]
[1768841021595,0.03022987,93253.0,93241.0,0.01073]
[1768841022298,0.03022987,93253.0,93242.0,0.01073]
[1768841023702,0.04095887,93253.0,93240.0,0.1903407]
[1768841023903,0.04095887,93253.0,93240.0,0.1796107]
[1768841024107,0.03022987,93253.0,93240.0,0.1796107]
[1768841024407,0.03022987,93253.0,93240.0,0.1903407]
[1768841024602,0.03022987,93253.0,93238.0,0.010731]
[1768841024904,0.03022987,93253.0,93240.0,0.1796107]
[1768841025105,0.03022987,93253.0,93240.0,0.1903407]
[1768841026207,0.03022987,93253.0,93242.0,0.01073]
[1768841026906,0.03022987,93253.0,93240.0,0.1796107]
[1768841027896,0.04095887,93253.0,93240.0,0.1796107]
[1768841028097,0.06321964,93256.0,93240.0,0.1903407]
[1768841028297,0.09505841,93256.0,93240.0,0.1903407]
[1768841029010,0.010729,93254.0,93240.0,0.1903407]
[1768841030104,0.09505841,93256.0,93241.0,0.01073]
[1768841030300,0.02286218,93255.0,93241.0,0.01073]
[1768841030610,0.02286218,93254.0,93242.0,0.01073]
[1768841030800,0.04256777,93256.0,93242.0,0.01073]
[1768841031001,0.02286267,93255.0,93242.0,0.01073]
[1768841031303,0.02286267,93254.0,93240.0,0.1796107]
[1768841031508,0.0966,93257.0,93245.0,0.01073]
[1768841031707,0.02286662,93256.0,93245.0,0.01073]
[1768841032014,0.02286662,93255.0,93242.0,0.06251109]
[1768841032200,0.02286662,93254.0,93242.0,0.06251109]
[1768841032400,0.02286662,93253.0,93242.0,0.06251109]
[1768841032705,0.03183877,93258.0,93242.0,0.05178109]
[1768841032915,0.02287018,93257.0,93242.0,0.05178109]
[1768841033098,0.03183877,93258.0,93242.0,0.05178109]
[1768841033099,0.010729,93254.0,93242.0,0.05178109]
[1768841033299,0.010729,93253.0,93240.0,0.1796107]
[1768841033616,0.010729,93252.0,93240.0,0.1796107]
[1768841034310,0.010729,93255.0,93240.0,0.1796107]
[1768841036113,0.010728,93257.0,93240.0,0.1903407]
[1768841036316,0.02288595,93256.0,93240.0,0.1903407]
[1768841036510,0.02288595,93255.0,93240.0,0.1903407]
[1768841036710,0.02288595,93254.0,93242.0,0.01073]
[1768841036911,0.02288595,93253.0,93242.0,0.01073]
[1768841037116,0.010729,93255.0,93240.0,0.1796107]
[1768841037311,0.02289889,93254.0,93241.0,0.01073]
[1768841037615,0.02289889,93253.0,93241.0,0.01073]
[1768841037815,0.03183877,93258.0,93240.0,0.1796107]
[1768841038117,0.02289889,93257.0,93243.0,0.01073]
[1768841038415,0.02289889,93256.0,93243.0,0.01073]
[1768841038610,0.02289889,93255.0,93243.0,0.01073]
[1768841038913,0.02289889,93254.0,93243.0,0.01073]
[1768841039115,0.02289889,93253.0,93243.0,0.01073]
[1768841039314,0.010729,93256.0,93243.0,0.01073]
[1768841039510,0.02289885,93255.0,93243.0,0.01073]
[1768841039709,0.02289885,93254.0,93243.0,0.01073]
[1768841039916,0.02289885,93253.0,93243.0,0.01073]
[1768841040211,0.010729,93256.0,93243.0,0.01073]
[1768841040516,0.02289888,93255.0,93243.0,0.01073]
[1768841040710,0.02289888,93254.0,93240.0,0.1796107]
[1768841041007,0.02289888,93253.0,93240.0,0.1796107]
[1768841041214,0.010729,93256.0,93240.0,0.1796107]
[1768841041406,0.02289896,93255.0,93240.0,0.1796107]
[1768841041611,0.03362796,93254.0,93242.0,0.01073]
[1768841041804,0.02289896,93253.0,93240.0,0.1903407]
[1768841042000,0.010729,93254.0,93240.0,0.1903407]
[1768841042206,0.02289896,93253.0,93240.0,0.1903407]
[1768841042406,0.010729,93254.0,93240.0,0.1903407]
[1768841042607,0.02289904,93253.0,93240.0,0.1903407]
[1768841042817,0.010729,93256.0,93241.0,0.01073]
[1768841043006,0.02289904,93255.0,93241.0,0.01073]
[1768841043206,0.02289904,93254.0,93241.0,0.01073]
[1768841043505,0.010729,93256.0,93241.0,0.01073]
[1768841043705,0.02289914,93255.0,93241.0,0.01073]
[1768841043900,0.02289914,93254.0,93241.0,0.01073]
[1768841044115,0.010729,93256.0,93241.0,0.01073]
[1768841044311,0.02289914,93255.0,93241.0,0.01073]
[1768841044510,0.02289914,93254.0,93241.0,0.01073]
[1768841044712,0.010729,93256.0,93241.0,0.01073]
[1768841045010,0.02289922,93255.0,93241.0,0.01073]
[1768841045217,0.02289922,93254.0,93242.0,0.01073]
[1768841045405,0.010728,93257.0,93242.0,0.01073]
[1768841045605,0.0228992,93256.0,93242.0,0.01073]
[1768841045805,0.0228992,93255.0,93241.0,0.01073]
[1768841046005,0.0228992,93254.0,93241.0,0.01073]
[1768841046305,0.010728,93257.0,93241.0,0.01073]
[1768841046507,0.02289919,93256.0,93241.0,0.01073]
[1768841046712,0.02289919,93255.0,93241.0,0.01073]
[1768841047010,0.02289919,93254.0,93242.0,0.01073]
[1768841047210,0.010728,93257.0,93242.0,0.01073]
[1768841047411,0.02289919,93256.0,93242.0,0.01073]
[1768841047601,0.010728,93257.0,93242.0,0.01073]
[1768841047602,0.02289919,93255.0,93242.0,0.01073]
[1768841047810,0.02289919,93254.0,93242.0,0.01073]
[1768841048008,0.010728,93257.0,93242.0,0.01073]
[1768841048209,0.02289917,93256.0,93242.0,0.01073]
[1768841048404,0.02289917,93255.0,93243.0,0.01073]
[1768841048608,0.02289917,93254.0,93243.0,0.01073]
[1768841048808,0.03183877,93258.0,93243.0,0.01073]
[1768841049008,0.02289914,93257.0,93243.0,0.01073]
[1768841049216,0.02289914,93256.0,93243.0,0.01073]
[1768841049515,0.02289914,93255.0,93243.0,0.01073]
[1768841049707,0.03362814,93254.0,93240.0,0.1796107]
[1768841050015,0.02289913,93253.0,93241.0,0.01073]
[1768841050215,0.04256677,93258.0,93242.0,0.01073]
[1768841050419,0.02289949,93257.0,93242.0,0.01073]
[1768841050613,0.02289949,93256.0,93242.0,0.01073]
[1768841050805,0.04256677,93258.0,93242.0,0.01073]
[1768841050806,0.02289949,93255.0,93242.0,0.01073]
[1768841051008,0.02289949,93254.0,93240.0,0.1903407]
[1768841051203,0.02289949,93253.0,93240.0,0.1903407]
[1768841051508,0.010729,93256.0,93240.0,0.1903407]
[1768841051710,0.0228992,93255.0,93240.0,0.1903407]
[1768841051908,0.0228992,93254.0,93240.0,0.1903407]
[1768841052109,0.0228992,93253.0,93240.0,0.1903407]
[1768841052311,0.010729,93256.0,93241.0,0.01073]
[1768841052512,0.02289907,93255.0,93241.0,0.01073]
[1768841052711,0.02289907,93254.0,93242.0,0.01073]
[1768841052913,0.02289907,93253.0,93242.0,0.01073]
[1768841053115,0.010729,93256.0,93242.0,0.01073]
[1768841053316,0.02282988,93255.0,93242.0,0.01073]
[1768841053516,0.02282988,93254.0,93242.0,0.01073]
[1768841053716,0.02282988,93253.0,93242.0,0.01073]
[1768841054018,0.04256677,93258.0,93242.0,0.01073]
[1768841054220,0.02282978,93257.0,93242.0,0.01073]
[1768841054517,0.02282978,93256.0,93243.0,0.01073]
[1768841054716,0.02282978,93255.0,93243.0,0.01073]
[1768841054920,0.02282978,93254.0,93243.0,0.01073]
[1768841055119,0.02282978,93253.0,93243.0,0.01073]
[1768841055320,0.010729,93255.0,93243.0,0.01073]
[1768841055520,0.02282965,93254.0,93240.0,0.01073]
[1768841055722,0.02282965,93253.0,93240.0,0.1903407]
[1768841056023,0.03183877,93258.0,93240.0,0.1903407]
[1768841056220,0.010729,93255.0,93242.0,0.01073]
[1768841056420,0.02282965,93254.0,93242.0,0.01073]
[1768841056620,0.02282965,93253.0,93242.0,0.01073]
[1768841056923,0.010729,93255.0,93240.0,0.1903407]
[1768841057124,0.02282958,93254.0,93240.0,0.1903407]
[1768841057318,0.02282958,93253.0,93240.0,0.1903407]
[1768841057518,0.010729,93255.0,93241.0,0.01073]
[1768841057718,0.02282952,93254.0,93241.0,0.01073]
[1768841057919,0.02282952,93253.0,93241.0,0.01073]
[1768841058121,0.010729,93255.0,93241.0,0.01073]
[1768841058426,0.02282952,93254.0,93244.0,0.01073]
[1768841058617,0.02282952,93253.0,93244.0,0.01073]
[1768841058917,0.04256677,93258.0,93244.0,0.01073]
[1768841059116,0.02282947,93257.0,93244.0,0.01073]
[1768841059317,0.02282947,93256.0,93244.0,0.01073]
[1768841059621,0.02282947,93256.0,93240.0,0.1796107]
[1768841059622,0.02282947,93255.0,93240.0,0.1796107]
[1768841059821,0.02282947,93254.0,93243.0,0.01073]
[1768841060021,0.04256677,93258.0,93243.0,0.01073]
[1768841060022,0.02282947,93253.0,93243.0,0.01073]
[1768841060223,0.04256677,93258.0,93243.0,0.01073]
[1768841060523,0.0228294,93257.0,93243.0,0.01073]
[1768841060824,0.0228294,93256.0,93243.0,0.01073]
[1768841061026,0.0335584,93255.0,93243.0,0.01073]
[1768841061321,0.0228294,93254.0,93243.0,0.01073]
[1768841061624,0.0228294,93253.0,93243.0,0.01073]
[1768841061922,0.010729,93255.0,93243.0,0.01073]
[1768841062222,0.02282936,93254.0,93243.0,0.01073]
[1768841062426,0.010729,93255.0,93243.0,0.01073]
[1768841062626,0.02282918,93254.0,93243.0,0.01073]
[1768841062825,0.010728,93257.0,93243.0,0.01073]
[1768841063027,0.02282901,93256.0,93243.0,0.01073]
[1768841063227,0.02282901,93255.0,93243.0,0.01073]
[1768841063427,0.02282901,93255.0,93240.0,0.1796107]
[1768841063428,0.02282901,93254.0,93240.0,0.1796107]
[1768841063620,0.03183877,93258.0,93240.0,0.1796107]
[1768841063824,0.02282896,93257.0,93240.0,0.1796107]
[1768841064019,0.02282896,93256.0,93240.0,0.1796107]
[1768841064218,0.02282896,93255.0,93245.0,0.01073]
[1768841064418,0.02282896,93254.0,93245.0,0.01073]
[1768841064625,0.03183877,93258.0,93245.0,0.01073]
[1768841064820,0.03183877,93258.0,93247.0,0.01073]
[1768841064821,0.02282893,93257.0,93247.0,0.01073]
[1768841065026,0.02282893,93256.0,93245.0,0.01073]
[1768841065221,0.02282893,93255.0,93245.0,0.01073]
[1768841065429,0.02282893,93254.0,93245.0,0.01073]
[1768841065630,0.0966,93259.0,93247.0,0.01073]
[1768841065824,0.02282886,93258.0,93247.0,0.01073]
[1768841066020,0.02282886,93257.0,93248.0,0.1796107]
[1768841066330,0.107328,93262.0,93250.0,0.010729]
[1768841066527,0.0966,93262.0,93250.0,0.010729]
[1768841067730,0.010728,93261.0,93248.0,0.05041392]
[1768841068124,0.0966,93262.0,93245.0,0.01073]
[1768841068325,0.02824152,93261.0,93245.0,0.01073]
[1768841068532,0.010728,93259.0,93243.0,0.06114392]
[1768841068733,0.010728,93259.0,93245.0,0.01073]
[1768841069436,0.010728,93259.0,93243.0,0.06114392]
[1768841070336,0.03896952,93261.0,93244.0,0.01073]
[1768841071038,0.03896952,93261.0,93246.0,0.01073]
[1768841071242,0.0966,93262.0,93248.0,0.010729]
[1768841072147,0.12484152,93262.0,93248.0,0.010729]
[1768841072442,0.12484152,93262.0,93244.0,0.05041392]
[1768841072943,0.13556952,93262.0,93246.0,0.01073]
[1768841073849,0.0966,93262.0,93248.0,0.05041392]
[1768841074147,0.0966,93262.0,93250.0,0.1903397]
[1768841074648,0.010728,93265.0,93250.0,0.1903397]
[1768841075536,0.02824152,93266.0,93251.0,0.010729]
[1768841075735,0.010728,93264.0,93250.0,0.1796107]
[1768841076049,0.010728,93265.0,93250.0,0.1796107]
[1768841076242,0.03896952,93265.0,93250.0,0.1796107]
[1768841077054,0.010728,93263.0,93250.0,0.1796107]
[1768841077244,0.010728,93259.0,93250.0,0.1796107]
[1768841077445,0.010728,93262.0,93250.0,0.1796107]
[1768841077644,0.010728,93261.0,93244.0,0.03288782]
[1768841078052,0.010728,93261.0,93244.0,0.02215782]
[1768841078254,0.0226171,93260.0,93244.0,0.02215782]
[1768841078450,0.0226171,93259.0,93250.0,0.1796107]
[1768841078651,0.0226171,93258.0,93250.0,0.1796107]
[1768841078852,0.010728,93261.0,93250.0,0.1796107]
[1768841079157,0.0226159,93260.0,93250.0,0.1796107]
[1768841079452,0.0226159,93259.0,93250.0,0.1796107]
[1768841079655,0.0226159,93258.0,93250.0,0.1796107]
[1768841079847,0.03896952,93264.0,93250.0,0.1796107]
[1768841080046,0.02261491,93263.0,93250.0,0.1903397]
[1768841080249,0.02261491,93262.0,93253.0,0.010729]
[1768841080447,0.02261491,93261.0,93253.0,0.010729]
[1768841082454,0.02260945,93267.0,93257.0,0.010728]
[1768841082660,0.02260945,93266.0,93257.0,0.010728]
[1768841082955,0.00235878,93269.0,93258.0,0.04897441]
[1768841083550,0.01308578,93269.0,93254.0,0.02080991]
[1768841084057,0.01308578,93269.0,93254.0,0.03153891]
[1768841084558,0.00235878,93269.0,93254.0,0.03153891]
[1768841085061,0.02825382,93268.0,93249.0,0.04897441]
[1768841085247,0.01308578,93269.0,93253.0,0.010729]
[1768841086054,0.01308578,93269.0,93255.0,0.010729]
[1768841086764,0.01308578,93269.0,93255.0,0.08041799]
[1768841086958,0.00235878,93269.0,93258.0,0.02071458]
[1768841087261,0.00235878,93269.0,93258.0,0.06968899]
[1768841087657,0.00235878,93269.0,93258.0,0.04897441]
[1768841088559,0.00235878,93269.0,93258.0,0.05970241]
[1768841089356,0.05116909,93269.0,93255.0,0.010729]
[1768841089545,0.010727,93267.0,93247.0,0.04897441]
[1768841089972,0.03898082,93267.0,93247.0,0.04897441]
[1768841090266,0.03898082,93267.0,93253.0,0.010729]
[1768841090651,0.010728,93265.0,93250.0,0.010729]
[1768841090852,0.02825382,93267.0,93252.0,0.010729]
[1768841091153,0.02825382,93267.0,93253.0,0.010729]
[1768841092169,0.02825382,93267.0,93247.0,0.04897441]
[1768841092465,0.010727,93266.0,93253.0,0.010729]
[1768841092666,0.010728,93265.0,93251.0,0.010729]
[1768841093059,0.010728,93265.0,93247.0,0.04897441]
[1768841093265,0.010728,93264.0,93247.0,0.04897441]
[1768841093464,0.010728,93264.0,93250.0,0.010729]
[1768841093660,0.010727,93266.0,93250.0,0.010729]
[1768841093968,0.03648461,93266.0,93252.0,0.010729]
[1768841094171,0.02575761,93266.0,93252.0,0.010729]
[1768841095258,0.02575761,93266.0,93254.0,0.010729]
[1768841095658,0.0769267,93269.0,93248.0,0.0685517]
[1768841095871,0.00235878,93269.0,93257.0,0.010728]
[1768841098169,0.02575761,93268.0,93254.0,0.010729]
[1768841098480,0.03648461,93268.0,93252.0,0.010729]
[1768841099173,0.02575761,93268.0,93253.0,0.010729]
[1768841100274,0.02575761,93268.0,93255.0,0.010729]
[1768841100966,0.00235878,93269.0,93261.0,0.010728]
[1768841101171,0.00235878,93269.0,93251.0,0.010729]
[1768841101172,0.00235878,93269.0,93260.0,0.04924191]
[1768841101366,0.00235878,93269.0,93261.0,0.010728]
[1768841101568,0.00235878,93269.0,93262.0,0.010728]
[1768841101872,0.00235878,93269.0,93264.0,0.05996991]
[1768841102069,0.09656,93274.0,93266.0,0.010727]
[1768841102374,0.09656,93281.0,93270.0,0.010727]
[1768841102562,0.09656,93281.0,93264.0,0.04924191]
[1768841102563,0.02244807,93280.0,93268.0,0.010727]
[1768841102874,0.09656,93281.0,93268.0,0.010727]
[1768841103673,0.03648261,93285.0,93268.0,0.010727]
[1768841103874,0.02244588,93284.0,93268.0,0.010727]
[1768841104078,0.03317188,93283.0,93268.0,0.010727]
[1768841104280,0.010726,93283.0,93268.0,0.010727]
[1768841105161,0.12231761,93285.0,93266.0,0.01705443]
[1768841105376,0.010726,93282.0,93264.0,0.04924191]
[1768841105576,0.010726,93280.0,93264.0,0.05996991]
[1768841105771,0.02575761,93279.0,93261.0,0.010728]
[1768841105982,0.02575761,93277.0,93261.0,0.010728]
[1768841106173,0.02575761,93277.0,93263.0,0.010728]
[1768841106664,0.02575761,93277.0,93265.0,0.010728]
[1768841107178,0.04985975,93283.0,93267.0,0.010727]
[1768841107483,0.02575761,93281.0,93266.0,0.010727]
[1768841107778,0.02575761,93280.0,93263.0,0.010728]
[1768841107966,0.03648361,93279.0,93263.0,0.010728]
[1768841108779,0.02575761,93277.0,93259.0,0.09656]
[1768841108979,0.02575761,93266.0,93256.0,0.09656]
[1768841109167,0.02575761,93265.0,93250.0,0.09656]
[1768841109869,0.02575761,93265.0,93251.0,0.010729]
[1768841110076,0.010727,93267.0,93251.0,0.010729]
[1768841110970,0.010728,93265.0,93250.0,0.09656]
[1768841112980,0.010727,93269.0,93253.0,0.010729]
[1768841113283,0.03648461,93270.0,93252.0,0.010729]
[1768841113477,0.010727,93267.0,93252.0,0.010729]
[1768841113780,0.010727,93267.0,93250.0,0.14580191]
[1768841114280,0.02575761,93267.0,93250.0,0.14580191]
[1768841114482,0.02575761,93267.0,93250.0,0.09656]
[1768841115076,0.03648461,93267.0,93250.0,0.107289]
[1768841115283,0.02575761,93267.0,93252.0,0.010729]
[1768841115577,0.010727,93269.0,93254.0,0.010729]
[1768841115781,0.02575761,93271.0,93256.0,0.010729]
[1768841116482,0.02575761,93271.0,93255.0,0.010729]
[1768841117877,0.02575761,93271.0,93257.0,0.010728]
[1768841118074,0.02575761,93271.0,93254.0,0.010729]
[1768841118880,0.03648461,93271.0,93254.0,0.010729]
[1768841123079,0.02575761,93271.0,93252.0,0.06936455]
[1768841123276,0.02575761,93271.0,93257.0,0.010728]
[1768841123582,0.02575761,93271.0,93256.0,0.010729]
[1768841123885,0.02575761,93271.0,93258.0,0.010728]
[1768841124081,0.12214666,93274.0,93253.0,0.06509769]
[1768841124277,0.12214666,93274.0,93258.0,0.010728]
[1768841124474,0.09656,93274.0,93258.0,0.010728]
[1768841124674,0.09656,93274.0,93256.0,0.07582669]
[1768841124881,0.107287,93274.0,93256.0,0.07582669]
[1768841125380,0.02558666,93276.0,93258.0,0.05680585]
[1768841125579,0.010726,93275.0,93258.0,0.04607785]
[1768841125883,0.12214666,93276.0,93258.0,0.06491775]
[1768841126085,0.09656,93279.0,93266.0,0.010727]
[1768841126785,0.010726,93283.0,93265.0,0.010728]
[1768841127084,0.010726,93281.0,93265.0,0.04607785]
[1768841127282,0.02270408,93280.0,93270.0,0.010727]
[1768841127482,0.02558666,93287.0,93266.0,0.06456319]
[1768841127786,0.010726,93283.0,93269.0,0.010727]
[1768841127989,0.02270614,93282.0,93269.0,0.010727]
[1768841128284,0.02270614,93282.0,93268.0,0.010727]
[1768841128688,0.02270614,93282.0,93271.0,0.04607785]
[1768841128981,0.12214666,93290.0,93271.0,0.04607785]
[1768841129181,0.02270714,93289.0,93274.0,0.04607785]
[1768841129488,0.02270714,93288.0,93275.0,0.04607785]
[1768841129671,0.02558666,93290.0,93272.0,0.01821306]
[1768841129876,0.02270424,93289.0,93269.0,0.04607785]
[1768841130075,0.02558666,93290.0,93269.0,0.04607785]
[1768841130278,0.010725,93286.0,93271.0,0.010727]
[1768841131384,0.010725,93289.0,93271.0,0.010727]
[1768841131582,0.010725,93289.0,93269.0,0.04607785]
[1768841131583,0.03631166,93289.0,93273.0,0.010727]
[1768841132880,0.02269664,93288.0,93273.0,0.010727]
[1768841133189,0.02558666,93289.0,93270.0,0.04607785]
[1768841133385,0.02269658,93288.0,93270.0,0.04607785]
[1768841133590,0.02558666,93289.0,93273.0,0.010727]
[1768841133790,0.02269395,93288.0,93273.0,0.05680485]
[1768841133988,0.010725,93290.0,93273.0,0.05680485]
[1768841134196,0.02269394,93289.0,93274.0,0.010726]
[1768841134391,0.010725,93290.0,93274.0,0.010726]
[1768841134590,0.02269169,93289.0,93274.0,0.010726]
[1768841134887,0.02558666,93289.0,93270.0,0.010727]
[1768841135287,0.010725,93284.0,93268.0,0.04607785]
[1768841135481,0.010725,93284.0,93269.0,0.010727]
[1768841135684,0.010725,93284.0,93270.0,0.09656]
[1768841136092,0.02558666,93286.0,93270.0,0.09656]
[1768841136285,0.010726,93283.0,93270.0,0.09656]
[1768841137091,0.02558666,93286.0,93270.0,0.09656]
[1768841138493,0.010725,93284.0,93270.0,0.09656]
[1768841139094,0.02558666,93286.0,93270.0,0.09656]
[1768841139293,0.010725,93285.0,93270.0,0.09656]
[1768841139488,0.03631166,93286.0,93270.0,0.09656]
[1768841140297,0.03631166,93286.0,93270.0,0.107287]
[1768841140897,0.03512641,93286.0,93270.0,0.107287]
[1768841141698,0.010725,93284.0,93270.0,0.09656]
[1768841141894,0.010726,93283.0,93270.0,0.09656]
[1768841142497,0.010726,93282.0,93270.0,0.09656]
[1768841142700,0.010725,93283.0,93270.0,0.09656]
[1768841142888,0.02522689,93284.0,93270.0,0.27605187]
[1768841143501,0.010725,93285.0,93270.0,0.27605187]
[1768841144401,0.010725,93285.0,93270.0,0.28677887]
[1768841144695,0.07507718,93288.0,93272.0,0.010727]
[1768841144897,0.07507718,93288.0,93270.0,0.27605187]
[1768841144898,0.02522689,93288.0,93273.0,0.010727]
[1768841145200,0.02522689,93288.0,93275.0,0.010726]
[1768841145397,0.12178689,93291.0,93275.0,0.010726]
[1768841145703,0.03595189,93290.0,93274.0,0.010726]
[1768841146903,0.010725,93287.0,93270.0,0.32447336]
[1768841147502,0.02522689,93290.0,93270.0,0.32447336]
[1768841147696,0.010725,93284.0,93270.0,0.27605187]
[1768841148297,0.010725,93284.0,93270.0,0.28677887]
[1768841148699,0.03595189,93286.0,93270.0,0.28677887]
[1768841148894,0.07152161,93290.0,93270.0,0.27605187]
[1768841149099,0.010725,93286.0,93271.0,0.04842149]
[1768841149894,0.010725,93286.0,93271.0,0.05914849]
[1768841150604,0.010725,93288.0,93273.0,0.010727]
[1768841151599,0.02522689,93288.0,93268.0,0.09656]
[1768841151801,0.010725,93285.0,93270.0,0.17949187]
[1768841152200,0.010725,93285.0,93270.0,0.19021887]
[1768841153002,0.03595189,93287.0,93270.0,0.19021887]
[1768841153302,0.010725,93285.0,93270.0,0.19021887]
[1768841153506,0.010725,93284.0,93270.0,0.17949187]
[1768841154007,0.03595189,93287.0,93270.0,0.19021887]
[1768841154407,0.010725,93285.0,93270.0,0.010727]
[1768841154608,0.010725,93286.0,93270.0,0.17949187]
[1768841155310,0.010725,93284.0,93270.0,0.17949187]
[1768841155609,0.010726,93283.0,93270.0,0.17949187]
[1768841156403,0.010725,93289.0,93271.0,0.010727]
[1768841156608,0.02284413,93288.0,93275.0,0.01475588]
[1768841156801,0.09656,93293.0,93279.0,0.17949187]
[1768841157009,0.022844,93292.0,93279.0,0.17949187]